bitfinex-derivatives/quotes_SOLF0:USTF0_20241206
["timestamp","ask_amount","ask_price","bid_price","bid_amount"]
[1733446335099,290.0,238.73,238.42,16.31156629]
[1733446335300,2.5855,238.63,238.43,6.2265]
[1733446335504,2.5855,238.63,238.43,7.5884]
[1733446335705,2.0937,238.59,238.43,7.5884]
[1733446335901,2.5855,238.63,238.43,7.5884]
[1733446338112,2.0936,238.61,238.43,7.5884]
[1733446338607,1.2868,238.63,238.46,16.31156629]
[1733446339907,2.0932,238.66,238.46,16.31156629]
[1733446340102,16.31156629,238.7,238.5,16.31156629]
[1733446340103,1.3525,238.7,238.5,16.31156629]
[1733446340407,3.4453,238.7,238.51,3.66]
[1733446340806,1.3525,238.7,238.51,3.66]
[1733446341510,16.31156629,238.69,238.52,3.66]
[1733446341706,2.0934,238.63,238.46,16.31156629]
[1733446341910,16.31156629,238.65,238.47,3.66]
[1733446342413,16.31156629,238.65,238.43,3.9284]
[1733446342712,16.31156629,238.65,238.46,16.31156629]
[1733446342912,2.0932,238.66,238.46,16.31156629]
[1733446343312,2.093,238.68,238.5,16.31156629]
[1733446344008,16.31156629,238.69,238.5,16.31156629]
[1733446344214,1.3525,238.7,238.54,16.31156629]
[1733446344411,1.3525,238.7,238.55,7.653]
[1733446344621,16.31156629,238.77,238.55,9.75476985]
[1733446344907,16.31156629,238.77,238.58,16.31156629]
[1733446345110,1.3171,238.78,238.58,16.31156629]
[1733446345304,1.3171,238.78,238.62,16.31156629]
[1733446345504,16.31156629,238.81,238.63,3.64]
[1733446346011,3.64,238.88,238.63,3.64]
[1733446346315,16.31156629,238.85,238.63,3.64]
[1733446346511,2.0919,238.8,238.63,3.64]
[1733446346705,16.31156629,238.85,238.63,3.64]
[1733446347114,16.31156629,238.9,238.67,16.31156629]
[1733446347414,16.31156629,238.9,238.71,16.31156629]
[1733446347611,18.40266629,238.9,238.72,3.64]
[1733446347815,16.31156629,238.9,238.72,5.74628008]
[1733446348010,1.2522,238.91,238.75,16.31156629]
[1733446348210,2.0908,238.93,238.75,16.31156629]
[1733446349107,18.40226629,238.94,238.75,16.31156629]
[1733446349308,16.31156629,238.94,238.75,16.31156629]
[1733446349907,19.95156629,238.98,238.75,16.31156629]
[1733446350113,16.31156629,238.98,238.75,16.31156629]
[1733446350314,16.31156629,238.99,238.75,16.31156629]
[1733446350513,2.0905,238.97,238.75,16.31156629]
[1733446350712,16.31156629,238.99,238.75,16.31156629]
[1733446351017,2.0904,238.98,238.79,16.31156629]
[1733446351215,2.0904,238.98,238.8,7.5779]
[1733446351412,16.31156629,239.03,238.83,16.31156629]
[1733446351617,2.09,239.03,238.83,16.31156629]
[1733446352211,16.31156629,239.07,238.87,16.31156629]
[1733446352409,16.31156629,239.07,238.88,3.64]
[1733446352614,20.28956629,239.11,238.88,5.71863079]
[1733446352811,20.28956629,239.11,238.91,16.31156629]
[1733446353009,16.31156629,239.15,238.92,1.3044]
[1733446353415,16.31156629,239.15,238.93,2.6335]
[1733446353822,1.3591,239.14,238.93,2.6335]
[1733446354412,2.0899,239.04,238.93,2.6335]
[1733446354615,16.31156629,239.07,238.93,6.2735]
[1733446355118,2.0894,239.09,238.93,6.2735]
[1733446355317,16.31156629,239.15,238.93,6.2735]
[1733446355515,2.0893,239.11,238.93,6.2735]
[1733446355721,16.31156629,239.15,238.93,6.2735]
[1733446356418,16.31156629,239.15,238.95,16.31156629]
[1733446356620,2.0891,239.13,238.95,16.31156629]
[1733446356826,4.9747,239.22,238.95,16.31156629]
[1733446356827,16.31156629,239.19,238.95,16.31156629]
[1733446357224,2.089,239.15,238.95,16.31156629]
[1733446357719,16.31156629,239.19,238.95,16.31156629]
[1733446358022,16.31156629,239.19,238.96,3.64]
[1733446358220,2.0885,239.21,239.03,16.31156629]
[1733446358416,16.31156629,239.26,239.04,4.8835]
[1733446358622,16.31156629,239.26,239.05,1.2407]
[1733446358818,2.0881,239.25,239.05,1.2407]
[1733446359017,16.31156629,239.28,239.07,16.31156629]
[1733446359621,16.31156629,239.28,239.07,18.35514677]
[1733446359817,2.0884,239.22,239.06,1.3375]
[1733446360220,2.0884,239.22,239.07,2.05192854]
[1733446360418,2.0882,239.23,239.07,16.31156629]
[1733446360624,16.31156629,239.28,239.07,18.38544618]
[1733446360928,2.0884,239.21,239.07,16.31156629]
[1733446361527,2.0883,239.23,239.08,2.09645842]
[1733446362023,2.0886,239.19,239.06,1.3375]
[1733446362330,16.31156629,239.25,239.07,3.64]
[1733446362924,16.31156629,239.29,239.07,3.64]
[1733446363327,3.8524,239.33,239.12,16.31156629]
[1733446363328,1.2433,239.33,239.12,16.31156629]
[1733446363633,1.2433,239.33,239.17,16.31156629]
[1733446363830,1.2433,239.33,239.18,6.2221]
[1733446364029,1.2433,239.33,239.18,9.60597009]
[1733446364232,1.2433,239.33,239.18,7.5338]
[1733446364427,1.2433,239.33,239.18,3.8938]
[1733446364731,2.0877,239.29,239.19,3.64]
[1733446364933,1.3276,239.32,239.13,16.31156629]
[1733446365128,16.31156629,239.31,239.14,3.64]
[1733446365526,1.3276,239.32,239.07,2.5992]
[1733446365527,16.31156629,239.23,239.07,2.5992]
[1733446365832,1.28,239.22,239.05,3.64]
[1733446366033,4.92,239.22,239.02,2.09998024]
[1733446366229,2.616,239.21,239.04,3.64]
[1733446366430,2.0889,239.16,239.04,3.64]
[1733446366828,2.616,239.21,239.04,3.64]
[1733446367234,2.0888,239.16,239.04,3.64]
[1733446367830,2.616,239.21,239.04,3.64]
[1733446368628,2.616,239.21,239.01,58.78355027]
[1733446368930,16.31156629,239.15,238.94,2.6432]
[1733446369134,3.64,239.14,238.94,6.2832]
[1733446369632,3.64,239.14,238.94,2.6432]
[1733446370038,3.64,239.16,238.97,16.31156629]
[1733446370337,2.0894,239.1,238.97,16.31156629]
[1733446370538,3.64,239.16,238.97,18.3937734]
[1733446371832,16.31156629,239.19,238.97,18.3937734]
[1733446372038,2.616,239.21,239.09,1.0]
[1733446374030,2.0879,239.27,239.1,26.18053492]
[1733446374233,2.0879,239.27,239.11,3.64]
[1733446375539,26.18053492,239.31,239.09,1.0]
[1733446375740,26.18053492,239.23,239.09,1.0]
[1733446375940,3.8188,239.22,239.09,1.0]
[1733446376536,2.089,239.14,239.09,1.0]
[1733446377439,3.8188,239.22,239.09,1.0]
[1733446377747,26.18053492,239.21,239.09,1.0]
[1733446378344,3.8188,239.22,239.09,1.0]
[1733446379045,2.0889,239.15,239.09,1.0]
[1733446379436,3.8188,239.22,239.09,1.0]
[1733446379637,26.18053492,239.18,239.09,1.0]
[1733446380344,2.0893,239.11,239.09,1.0]
[1733446380745,26.18053492,239.18,239.09,1.0]
[1733446380947,3.8188,239.22,239.09,1.0]
[1733446381146,26.18053492,239.21,239.09,1.0]
[1733446381447,2.0891,239.13,239.09,1.0]
[1733446381746,26.18053492,239.21,239.09,1.0]
[1733446382541,2.0887,239.18,239.09,1.0]
[1733446382747,26.18053492,239.21,239.09,1.0]
[1733446383145,2.0888,239.16,239.09,1.0]
[1733446383749,26.18053492,239.21,239.09,1.0]
[1733446383947,2.0887,239.17,239.09,1.0]
[1733446384249,26.18053492,239.21,239.09,1.0]
[1733446385445,4.1726,239.46,239.13,26.18053492]
[1733446385649,1.2278,239.36,239.17,26.18053492]
[1733446385852,1.2278,239.36,239.18,3.62]
[1733446386347,1.2278,239.36,239.21,26.18053492]
[1733446386949,26.18053492,239.32,239.1,3.36970759]
[1733446387151,26.18053492,239.28,239.1,1.2392]
[1733446387444,29.80053492,239.28,239.1,1.2392]
[1733446387749,2.0886,239.19,239.1,1.2392]
[1733446387949,2.5077,239.31,239.11,26.18053492]
[1733446388144,2.5077,239.31,239.15,26.18053492]
[1733446388349,2.5077,239.31,239.16,4.8666]
[1733446389248,2.0879,239.27,239.17,3.62]
[1733446389448,2.5077,239.31,239.17,3.62]
[1733446390547,1.2278,239.36,239.19,26.18053492]
[1733446391345,2.0875,239.31,239.19,26.18053492]
[1733446391547,3.62,239.32,239.1,2.4858]
[1733446391743,29.80053492,239.32,239.11,2.56429452]
[1733446391949,29.80053492,239.32,239.1,28.66633492]
[1733446392353,2.0881,239.24,239.1,28.66633492]
[1733446392652,1.2278,239.36,239.18,26.18053492]
[1733446392951,2.0876,239.31,239.19,3.62]
[1733446393258,1.2278,239.36,239.19,3.62]
[1733446394651,2.0875,239.31,239.19,3.62]
[1733446394953,1.2278,239.36,239.19,3.62]
[1733446395253,2.0875,239.32,239.19,3.62]
[1733446395651,1.2278,239.36,239.19,3.62]
[1733446395843,2.0874,239.33,239.19,3.62]
[1733446396046,18.72651623,239.39,239.19,3.62]
[1733446396252,17.38651623,239.39,239.2,1.2282]
[1733446396445,1.2861,239.39,239.21,16.10041623]
[1733446396652,1.2861,239.39,239.21,19.49641793]
[1733446396855,1.2861,239.39,239.22,1.2367]
[1733446397151,2.0871,239.36,239.22,1.2367]
[1733446397449,1.2861,239.39,239.22,1.2367]
[1733446397450,2.0871,239.37,239.22,1.2367]
[1733446397746,17.32311623,239.43,239.22,1.2367]
[1733446397952,1.2227,239.43,239.25,16.10041623]
[1733446398851,2.0867,239.41,239.25,16.10041623]
[1733446399051,1.2227,239.43,239.25,16.10041623]
[1733446400052,2.0867,239.4,239.25,16.10041623]
[1733446400249,2.0867,239.4,239.22,1.2367]
[1733446400452,16.10041623,239.38,239.21,1.3112]
[1733446401152,16.10041623,239.38,239.22,5.65963987]
[1733446401360,1.3324,239.39,239.22,5.65963987]
[1733446401754,1.3324,239.39,239.22,21.7600561]
[1733446401957,16.10041623,239.42,239.22,21.7600561]
[1733446402454,2.0869,239.39,239.22,21.7600561]
[1733446402649,16.10041623,239.42,239.22,21.7600561]
[1733446403557,2.0868,239.4,239.22,21.7600561]
[1733446403752,1.2227,239.43,239.22,21.7600561]
[1733446405056,2.087,239.38,239.22,21.7600561]
[1733446405255,1.2227,239.43,239.22,21.7600561]
[1733446405256,16.10041623,239.42,239.22,21.7600561]
[1733446405453,16.10041623,239.42,239.23,3.6]
[1733446406149,16.10041623,239.34,239.1,19.70041623]
[1733446406353,3.6,239.33,239.13,1.3308]
[1733446406554,16.10041623,239.3,239.13,1.3308]
[1733446406858,2.0881,239.24,239.13,4.9308]
[1733446407053,16.10041623,239.3,239.13,4.9308]
[1733446407254,1.2487,239.32,239.13,4.9308]
[1733446407451,2.088,239.26,239.13,4.9308]
[1733446407850,1.2487,239.32,239.13,4.9308]
[1733446408056,1.2487,239.32,239.14,16.10041623]
[1733446409357,1.3522,239.37,239.14,16.10041623]
[1733446409962,2.0876,239.31,239.14,16.10041623]
[1733446410155,1.3522,239.37,239.14,16.10041623]
[1733446410156,4.9722,239.37,239.14,16.10041623]
[1733446410360,3.62,239.37,239.13,1.3308]
[1733446410562,4.9094,239.37,239.13,1.3308]
[1733446411461,2.09969541,239.45,239.13,13.9208]
[1733446411763,2.0875,239.31,239.17,28.69041623]
[1733446412059,16.10041623,239.4,239.17,28.69041623]
[1733446412664,2.0875,239.31,239.17,28.69041623]
[1733446412868,2.0875,239.31,239.13,1.3308]
[1733446412869,2.0875,239.31,239.21,28.69041623]
[1733446413169,2.0875,239.31,239.22,4.9346]
[1733446413569,2.0874,239.33,239.23,1.2746]
[1733446413767,16.10041623,239.48,239.25,28.69041623]
[1733446413974,16.10041623,239.48,239.26,1.2766]
[1733446414667,16.10041623,239.4,239.26,1.2766]
[1733446415170,2.087,239.37,239.26,1.2766]
[1733446415365,16.10041623,239.4,239.26,1.2766]
[1733446415563,16.10041623,239.44,239.26,1.2766]
[1733446415769,2.0867,239.4,239.26,1.2766]
[1733446416170,16.10041623,239.44,239.26,1.2766]
[1733446417973,18.18681623,239.44,239.26,1.2766]
[1733446418173,16.10041623,239.48,239.26,1.2766]
[1733446418569,16.10041623,239.38,239.23,1.2746]
[1733446419079,2.0873,239.33,239.23,1.2746]
[1733446419672,16.10041623,239.38,239.23,1.2746]
[1733446419978,16.10041623,239.34,239.22,1.3346]
[1733446420367,2.0876,239.3,239.19,3.6]
[1733446420773,16.10041623,239.34,239.18,1.2944]
[1733446420970,16.10041623,239.3,239.16,1.2935]
[1733446421271,16.10041623,239.26,239.12,3.6]
[1733446421673,16.10041623,239.26,239.1,1.3435]
[1733446421674,2.0882,239.23,239.1,1.3435]
[1733446421973,2.0882,239.23,239.1,4.9435]
[1733446423279,2.0881,239.25,239.1,4.9435]
[1733446423480,16.10041623,239.26,239.1,4.9435]
[1733446424473,2.0882,239.23,239.1,4.9435]
[1733446424673,16.10041623,239.26,239.09,1.0]
[1733446424981,18.73011623,239.22,239.09,1.0]
[1733446425277,2.088,239.26,239.09,3.12889768]
[1733446425578,16.10041623,239.29,239.09,1.0]
[1733446425787,16.10041623,239.29,239.09,3.10694597]
[1733446426185,3.9486,239.3,239.09,3.10694597]
[1733446426186,3.62,239.32,239.1,16.10041623]
[1733446426487,2.0877,239.3,239.1,16.10041623]
[1733446426885,2.6297,239.4,239.14,16.10041623]
[1733446426886,16.10041623,239.37,239.14,16.10041623]
[1733446427189,16.10041623,239.37,239.15,6.2808]
[1733446427687,2.0872,239.35,239.15,6.2808]
[1733446427883,16.10041623,239.41,239.18,16.10041623]
[1733446428083,16.10041623,239.41,239.19,1.2235]
[1733446428488,2.5072,239.49,239.19,1.2235]
[1733446428683,16.10041623,239.42,239.19,44.6835]
[1733446428879,16.10041623,239.42,239.22,16.10041623]
[1733446429085,3.62,239.59,239.23,16.21]
[1733446429380,3.62,239.59,239.26,16.10041623]
[1733446429381,16.10041623,239.48,239.26,16.10041623]
[1733446429686,18.18641623,239.48,239.26,16.10041623]
[1733446430485,1.2555,239.57,239.19,1.2235]
[1733446430486,18.18781623,239.33,239.19,1.2235]
[1733446430784,16.10041623,239.29,239.1,5.64443587]
[1733446430985,16.10041623,239.29,239.11,6.0972]
[1733446431389,2.606,239.32,239.11,6.0972]
[1733446431895,2.0875,239.31,239.11,6.0972]
[1733446432083,2.606,239.32,239.12,26.17133452]
[1733446432784,4.6935,239.32,239.12,26.17133452]
[1733446433086,2.606,239.32,239.12,26.17133452]
[1733446433291,4.6934,239.32,239.12,26.17133452]
[1733446433491,2.606,239.32,239.12,26.17133452]
[1733446433685,26.17133452,239.31,239.13,3.6]
[1733446433889,2.088,239.26,239.13,3.6]
[1733446434088,26.17133452,239.31,239.13,3.6]
[1733446434487,26.17133452,239.26,239.13,3.6]
[1733446434690,1.2844,239.25,239.13,3.6]
[1733446435593,2.0882,239.24,239.13,3.6]
[1733446435893,1.2844,239.25,239.13,3.6]
[1733446436494,2.0882,239.23,239.13,3.6]
[1733446436696,1.2844,239.25,239.13,3.6]
[1733446437695,3.3725,239.25,239.13,3.6]
[1733446438591,2.0884,239.21,239.09,1.0]
[1733446438791,1.2844,239.25,239.09,1.0]
[1733446439389,26.17133452,239.22,239.09,1.0]
[1733446439591,1.2307,239.21,239.09,1.0]
[1733446439890,26.17133452,239.18,239.09,1.0]
[1733446440295,2.0888,239.16,239.09,1.0]
[1733446440498,26.17133452,239.14,239.0,2.39463]
[1733446440698,1.2895,239.13,239.0,2.39463]
[1733446440889,2.5683,239.21,239.0,28.56596452]
[1733446441090,26.17133452,239.28,239.09,26.17133452]
[1733446441294,26.17133452,239.28,239.1,4.9347]
[1733446441494,1.2307,239.38,239.11,2.06073234]
[1733446441495,26.17133452,239.32,239.11,2.06073234]
[1733446441897,26.17133452,239.36,239.14,26.17133452]
[1733446442491,2.0874,239.33,239.14,26.17133452]
[1733446442992,1.2307,239.38,239.18,26.17133452]
[1733446443196,1.2307,239.38,239.19,3.6]
[1733446443394,26.17133452,239.4,239.19,3.6]
[1733446443599,26.17133452,239.44,239.22,26.17133452]
[1733446443895,2.5754,239.5,239.3,26.17133452]
[1733446444195,26.17133452,239.53,239.31,3.6]
[1733446446298,3.6,239.86,239.5,26.17133452]
[1733446446508,1.2285,239.75,239.54,26.17133452]
[1733446446802,2.0842,239.7,239.54,26.17133452]
[1733446446995,1.2285,239.75,239.54,26.17133452]
[1733446447393,3.3122,239.75,239.54,26.17133452]
[1733446447594,1.2285,239.75,239.54,26.17133452]
[1733446448502,26.17133452,239.86,239.62,26.17133452]
[1733446448698,3.6,240.09,239.75,26.17133452]
[1733446448894,28.25313452,239.97,239.76,3.6]
[1733446449098,26.17133452,239.97,239.76,3.6]
[1733446449500,26.17133452,239.96,239.76,3.6]
[1733446450899,26.17133452,239.92,239.71,26.17133452]
[1733446451100,26.17133452,239.92,239.69,3.6]
[1733446451297,2.0826,239.87,239.69,3.6]
[1733446451602,26.17133452,239.92,239.69,3.6]
[1733446451800,3.6,239.9,239.69,3.6]
[1733446452005,2.0828,239.86,239.69,3.6]
[1733446452307,3.6,239.9,239.69,3.6]
[1733446452506,3.6,239.89,239.69,3.6]
[1733446452708,26.17133452,239.92,239.72,26.17133452]
[1733446453210,2.0828,239.86,239.68,43.44]
[1733446453408,26.17133452,239.92,239.69,3.6]
[1733446453707,26.17133452,239.76,239.5,3.6]
[1733446453903,2.0838,239.74,239.55,26.17133452]
[1733446454504,3.6,239.77,239.55,26.17133452]
[1733446454701,3.6,239.77,239.59,26.17133452]
[1733446454911,3.6,239.77,239.63,26.17133452]
[1733446455108,3.6,239.77,239.63,29.77133452]
[1733446455509,26.17133452,239.94,239.68,26.17133452]
[1733446456309,2.07023163,239.96,239.64,26.17133452]
[1733446456310,26.17133452,239.89,239.64,26.17133452]
[1733446456608,3.6,239.88,239.64,26.17133452]
[1733446456913,3.6,239.88,239.65,3.6]
[1733446457105,2.0834,239.79,239.65,3.6]
[1733446457602,26.17133452,239.83,239.65,3.6]
[1733446458013,290.0,239.93,239.68,26.17133452]
[1733446458209,26.17133452,239.94,239.72,26.17133452]
[1733446458414,26.17133452,239.94,239.73,3.6]
[1733446458713,2.0827,239.87,239.73,3.6]
[1733446458913,26.17133452,239.94,239.73,3.6]
[1733446459404,2.0829,239.85,239.73,3.6]
[1733446459904,2.0828,239.86,239.73,3.6]
[1733446460105,26.17133452,239.89,239.67,26.17133452]
[1733446460312,26.17133452,239.89,239.68,3.6]
[1733446461316,2.0835,239.77,239.68,3.6]
[1733446461716,3.6,239.87,239.68,3.6]
[1733446462017,2.083,239.83,239.68,3.6]
[1733446462610,2.0828,239.85,239.68,3.6]
[1733446462811,290.0,240.31,239.84,26.17133452]
[1733446463009,4.1575,240.33,239.9,26.17133452]
[1733446463010,26.17133452,240.14,239.9,26.17133452]
[1733446463210,26.17133452,240.24,239.86,3.6]
[1733446463211,26.17133452,240.09,239.86,3.6]
[1733446463416,26.17133452,240.09,239.85,26.17133452]
[1733446463417,3.58,240.08,239.85,26.17133452]
[1733446464017,2.0816,239.99,239.85,26.17133452]
[1733446464314,3.58,239.99,239.85,26.17133452]
[1733446465010,3.58,239.98,239.85,26.17133452]
[1733446465210,3.58,239.97,239.85,26.17133452]
[1733446465408,3.58,239.96,239.85,26.17133452]
[1733446466017,3.58,239.99,239.85,26.17133452]
[1733446466321,2.0819,239.96,239.85,26.17133452]
[1733446466519,3.58,239.99,239.85,26.17133452]
[1733446466815,2.0818,239.97,239.85,26.17133452]
[1733446467818,3.58,239.99,239.74,3.58]
[1733446468020,3.58,239.98,239.78,26.17133452]
[1733446468214,3.58,239.98,239.82,26.17133452]
[1733446468921,2.082,239.94,239.82,26.17133452]
[1733446469619,2.082,239.95,239.82,26.17133452]
[1733446470122,3.58,239.99,239.82,26.17133452]
[1733446471420,2.082,239.95,239.82,26.17133452]
[1733446471819,69.55133452,240.12,239.83,3.58]
[1733446471820,3.58,240.01,239.83,3.58]
[1733446472028,3.58,240.0,239.81,26.17133452]
[1733446472925,290.0,240.23,239.9,26.17133452]
[1733446473120,26.17133452,240.13,239.91,3.58]
[1733446473320,3.58,240.12,239.91,3.58]
[1733446474027,2.0817,239.98,239.91,3.58]
[1733446474220,2.0817,239.98,239.77,12.59]
[1733446474221,3.58,240.01,239.82,26.17133452]
[1733446474421,3.58,240.0,239.82,26.17133452]
[1733446475117,2.0821,239.94,239.85,2.0828]
[1733446475518,3.58,239.98,239.81,26.17133452]
[1733446476020,26.17133452,239.97,239.77,26.17133452]
[1733446476728,2.0823,239.91,239.8,2.0832]
[1733446477021,26.17133452,239.97,239.77,26.17133452]
[1733446477223,2.0824,239.91,239.81,2.0831]
[1733446477427,3.58,239.96,239.77,26.17133452]
[1733446477617,109.98565945,242.55,239.81,26.17133452]
[1733446477618,26.17133452,240.01,239.81,26.17133452]
[1733446477822,2.082,239.95,239.88,2.0825]
[1733446478328,2.082,239.95,239.83,3.58]
[1733446478823,3.58,240.02,239.83,3.58]
[1733446479324,2.0813,240.03,239.92,2.0821]
[1733446479528,26.17133452,240.1,239.9,3.58]
[1733446479827,3.58,240.09,239.9,3.58]
[1733446480132,3.58,240.09,239.92,2.0822]
[1733446480423,2.0815,240.01,239.93,2.0821]
[1733446480726,2.0815,240.01,239.9,3.58]
[1733446481118,26.17133452,240.06,239.9,3.58]
[1733446481519,2.0818,239.98,239.9,5.6624]
[1733446481722,26.17133452,240.1,239.9,3.58]
[1733446482222,2.0815,240.01,239.93,2.0821]
[1733446482426,2.0815,240.01,239.9,3.58]
[1733446482818,2.0816,240.0,239.9,3.58]
[1733446483425,2.0813,240.03,239.9,3.58]
[1733446483729,26.17133452,240.1,239.9,3.58]
[1733446484120,26.17133452,240.1,239.93,2.0821]
[1733446484520,2.0805,240.13,240.05,2.081]
[1733446484726,4.1577,240.32,239.97,3.58]
[1733446484727,26.17133452,240.17,239.97,3.58]
[1733446485427,26.17133452,240.17,240.02,2.0813]
[1733446485626,3.58,240.19,239.97,3.58]
[1733446485828,26.17133452,240.15,240.03,2.0812]
[1733446486022,26.17133452,240.15,239.97,3.58]
[1733446486226,2.0807,240.1,240.04,2.0812]
[1733446486430,3.58,240.16,240.04,2.0812]
[1733446486730,3.58,240.16,240.04,2.0811]
[1733446487031,26.17133452,240.13,239.97,3.58]
[1733446487228,2.0814,240.01,239.95,2.0819]
[1733446487435,2.0814,240.01,239.9,5.68373022]
[1733446487627,3.58,240.08,239.9,3.58]
[1733446487827,4.9175,240.08,239.9,5.67039833]
[1733446488026,1.3375,240.08,239.9,5.67039833]
[1733446488435,2.0812,240.04,239.9,5.67039833]
[1733446488624,3.58,240.12,239.9,3.58]
[1733446488829,2.0811,240.05,239.96,2.0818]
[1733446489025,26.17133452,240.09,239.9,3.58]
[1733446489636,26.17133452,240.01,239.81,26.17133452]
[1733446489927,4.9175,240.11,239.86,26.17133452]
[1733446490132,4.9175,240.11,239.91,26.17133452]
[1733446490329,4.9175,240.11,239.92,1.2846]
[1733446490531,2.0812,240.04,239.92,1.2846]
[1733446490927,4.9175,240.11,239.92,1.2846]
[1733446491133,2.0813,240.03,239.92,1.2846]
[1733446491333,4.9175,240.11,239.92,1.2846]
[1733446491632,2.0816,240.0,239.92,1.2846]
[1733446492135,16.0077839,240.09,239.87,19.5877839]
[1733446492337,16.0077839,240.09,239.87,3.58]
[1733446493028,3.58,240.08,239.87,3.58]
[1733446493234,16.0077839,240.05,239.87,3.58]
[1733446493435,1.2232,240.04,239.87,3.58]
[1733446493642,1.2232,240.04,239.83,16.0077839]
[1733446493929,1.2232,240.04,239.83,26.02102913]
[1733446494328,3.58,240.03,239.83,26.02102913]
[1733446495530,2.0818,239.97,239.85,2.0828]
[1733446495734,3.58,240.03,239.83,26.02102913]
[1733446496032,26.02102913,240.01,239.79,30.85732913]
[1733446496228,2.0824,239.9,239.79,30.85732913]
[1733446496433,3.58,239.94,239.79,30.85732913]
[1733446496731,26.02102913,240.01,239.69,1.25]
[1733446496732,4.1633,240.01,239.72,3.58]
[1733446496938,26.02102913,239.99,239.75,26.02102913]
[1733446497135,2.0827,239.89,239.82,2.0832]
[1733446497439,3.58,239.92,239.77,3.46885]
[1733446497743,6.1477,239.91,239.77,3.46885]
[1733446497937,2.5677,239.91,239.77,3.46885]
[1733446498130,3.4145,239.91,239.84,2.0831]
[1733446498332,1.332,239.91,239.78,1.25]
[1733446499333,1.332,239.91,239.78,3.3336]
[1733446499733,2.0828,239.88,239.79,2.0835]
[1733446499938,4.912,239.91,239.78,1.25]
[1733446500139,1.332,239.91,239.78,1.25]
[1733446500443,4.912,239.91,239.78,1.25]
[1733446500641,4.912,239.91,239.77,3.46885]
[1733446501242,3.58,239.9,239.77,3.46885]
[1733446501438,1.332,239.91,239.77,3.46885]
[1733446501641,2.0829,239.86,239.82,2.0832]
[1733446501943,3.58,239.93,239.77,3.46885]
[1733446502139,4.8581,239.93,239.77,3.46885]
[1733446502341,3.58,239.99,239.77,3.46885]
[1733446502537,3.58,239.99,239.79,26.02102913]
[1733446502942,3.58,239.99,239.89,2.0827]
[1733446503137,3.58,239.99,239.79,26.02102913]
[1733446504246,2.0826,239.9,239.79,26.02102913]
[1733446504449,3.58,239.99,239.79,26.02102913]
[1733446505443,2.0825,239.92,239.87,2.0828]
[1733446505746,3.58,239.99,239.79,26.02102913]
[1733446505945,2.0825,239.91,239.78,4.8441]
[1733446506547,2.0825,239.91,239.84,2.083]
[1733446506748,29.60102913,239.99,239.78,4.8441]
[1733446507051,29.60102913,239.99,239.87,2.0828]
[1733446507449,29.60102913,239.99,239.81,2.05197383]
[1733446507751,29.60102913,239.99,239.78,4.8441]
[1733446507752,3.58,240.19,239.88,26.02102913]
[1733446507947,3.58,240.19,239.78,17.3441]
[1733446507948,26.02102913,240.14,239.92,26.02102913]
[1733446508149,26.02102913,240.14,239.93,3.58]
[1733446509046,2.0812,240.07,239.93,3.58]
[1733446509254,26.02102913,240.24,240.0,26.02102913]
[1733446509452,4.63640578,240.23,240.04,26.02102913]
[1733446509649,4.63640578,240.23,240.01,7.4077]
[1733446509650,2.0794,240.27,240.08,26.02102913]
[1733446509955,2.5852,240.3,240.13,26.02102913]
[1733446510246,2.5852,240.3,240.14,9.49723259]
[1733446510446,1.3399,240.3,240.14,9.49723259]
[1733446510854,26.02102913,240.15,239.78,12.5]
[1733446511146,26.02102913,240.05,239.94,1.0]
[1733446511351,26.02102913,240.0,239.85,3.58]
[1733446511543,26.02102913,240.0,239.86,3.58]
[1733446512447,26.02102913,240.0,239.78,14.54285775]